bitfinex/quotes_BTCUSD_20260308
["timestamp","ask_amount","ask_price","bid_price","bid_amount"]
[1772982413048,0.01740965,67271.0,67256.0,0.07434174]
[1772982413049,0.12367471,67268.0,67253.0,0.07434603]
[1772982413401,0.01740965,67263.0,67251.0,0.0743473]
[1772982413594,0.00148,67267.0,67251.0,0.0743473]
[1772982413595,0.12367471,67260.0,67251.0,0.0745473]
[1772982413828,0.01889404,67259.0,67251.0,0.0745473]
[1772982414175,0.07434059,67258.0,67251.0,0.0745473]
[1772982414392,0.07434059,67258.0,67244.0,0.00016]
[1772982414393,0.12367471,67254.0,67244.0,0.00016]
[1772982414587,0.01741404,67253.0,67244.0,0.07451556]
[1772982414917,0.01889404,67253.0,67244.0,0.00016]
[1772982416045,0.12515471,67253.0,67244.0,0.00016]
[1772982416252,0.01741682,67250.0,67244.0,0.00016]
[1772982416528,0.017115,67250.0,67244.0,0.00016]
[1772982418545,0.01726591,67248.0,67244.0,0.00016]
[1772982419129,0.07433775,67261.0,67244.0,0.13113806]
[1772982419284,0.01726591,67260.0,67244.0,0.00016]
[1772982420508,0.01726531,67258.0,67245.0,0.07435497]
[1772982420707,0.01874531,67258.0,67245.0,0.20533303]
[1772982420890,0.00148,67259.0,67246.0,0.13097806]
[1772982421085,0.00148,67259.0,67248.0,0.13097806]
[1772982421891,0.00148,67260.0,67248.0,0.13097806]
[1772982422095,0.07621468,67261.0,67248.0,0.13097806]
[1772982422488,0.07473468,67261.0,67249.0,0.07435054]
[1772982422892,0.00039724,67261.0,67250.0,0.13139023]
[1772982424550,0.00039724,67261.0,67251.0,0.07434833]
[1772982424759,0.01726255,67272.0,67252.0,0.12063092]
[1772982424991,0.01874255,67271.0,67254.0,0.12063092]
[1772982426034,0.17663217,67270.0,67253.0,0.00148]
[1772982426335,0.01726178,67266.0,67254.0,0.00148]
[1772982426574,0.01726178,67264.0,67255.0,0.07434391]
[1772982428653,0.01726178,67264.0,67254.0,0.07434413]
[1772982428813,0.07433397,67264.0,67254.0,0.07434413]
[1772982429021,0.0172626,67263.0,67254.0,0.07434413]
[1772982431153,0.01726259,67262.0,67254.0,0.07434413]
[1772982432739,0.01726259,67262.0,67255.0,0.0002]
[1772982434827,0.01722259,67262.0,67255.0,0.0002]
[1772982437416,0.00148,67265.0,67255.0,0.0002]
[1772982437630,0.07432709,67271.0,67255.0,0.0002]
[1772982437631,0.0086313,67274.0,67255.0,0.12083092]
[1772982437829,0.0101113,67274.0,67255.0,0.12095002]
[1772982438031,0.0086313,67274.0,67255.0,0.12095002]
[1772982438229,0.0101113,67274.0,67255.0,0.12095002]
[1772982438492,0.0004,67275.0,67257.0,0.12063092]
[1772982438707,0.0004,67275.0,67256.0,0.0743428]
[1772982438708,0.00188,67275.0,67259.0,0.12063092]
[1772982439505,0.00022001,67272.0,67259.0,0.12063092]
[1772982440096,0.00148,67277.0,67259.0,0.12063092]
[1772982441233,0.00862746,67276.0,67261.0,0.12063092]
[1772982443358,0.00862746,67276.0,67263.0,0.12063092]
[1772982443561,0.00862746,67276.0,67264.0,0.00148]
[1772982444786,0.00862746,67276.0,67264.0,0.12211092]
[1772982445809,0.00862746,67276.0,67265.0,0.07433286]
[1772982446428,0.00862746,67276.0,67265.0,0.19496378]
[1772982448430,0.00862746,67276.0,67265.0,0.07433286]
[1772982457526,0.00884747,67276.0,67265.0,0.07433286]
[1772982466069,0.00884747,67276.0,67265.0,0.07453286]
[1772982467477,0.07453062,67286.0,67267.0,0.00481609]
[1772982467690,0.07453062,67286.0,67270.0,0.12594105]
[1772982467691,0.00148,67283.0,67270.0,0.12594105]
[1772982467899,0.00148,67283.0,67270.0,0.13223714]
[1772982468231,0.00148,67283.0,67261.0,0.07433286]
[1772982468232,0.12345588,67277.0,67260.0,0.07433773]
[1772982468442,0.12345588,67268.0,67246.0,0.0002]
[1772982468653,0.12345588,67264.0,67250.0,0.07474927]
[1772982468902,0.004902,67263.0,67250.0,0.07474927]
[1772982469109,0.00148,67266.0,67252.0,0.12594105]
[1772982469252,0.00039724,67266.0,67255.0,0.00481609]
[1772982469751,0.00039724,67266.0,67255.0,0.00465016]
[1772982471767,0.00039724,67266.0,67254.0,0.20028607]
[1772982471920,0.00039724,67266.0,67255.0,0.12594105]
[1772982472713,0.00039724,67266.0,67254.0,0.07434502]
[1772982472714,0.005,67265.0,67254.0,0.07434502]
[1772982474320,0.005,67265.0,67255.0,0.0002]
[1772982481978,0.005,67264.0,67255.0,0.0002]
[1772982482339,0.005,67264.0,67252.0,0.07434502]
[1772982482340,0.12493588,67263.0,67250.0,0.0004]
[1772982482555,0.12493588,67263.0,67244.0,0.0745154]
[1772982482556,0.005,67258.0,67244.0,0.0745154]
[1772982482775,0.005,67254.0,67243.0,0.0002]
[1772982482968,0.12366207,67250.0,67238.0,0.07462205]
[1772982483134,0.005,67247.0,67238.0,0.07462205]
[1772982483332,0.005,67247.0,67237.0,0.07436358]
[1772982483333,0.005,67247.0,67230.0,0.07437156]
[1772982483540,0.00148,67249.0,67220.0,0.07438199]
[1772982483541,0.12366207,67244.0,67220.0,0.07438199]
[1772982483779,0.005,67241.0,67225.0,0.07477629]
[1772982483994,0.13012858,67239.0,67225.0,0.07625629]
[1772982484201,0.005,67238.0,67225.0,0.07625629]
[1772982484380,0.00148,67237.0,67225.0,0.07477629]
[1772982484593,0.005,67236.0,67225.0,0.07477629]
[1772982484793,0.005,67236.0,67225.0,0.0748954]
[1772982484995,0.005,67234.0,67225.0,0.0748954]
[1772982486152,0.07436602,67235.0,67200.0,0.0046]
[1772982486153,0.13012858,67233.0,67200.0,0.0046]
[1772982486376,0.005,67230.0,67215.0,0.07438815]
[1772982486769,0.005,67229.0,67215.0,0.07438815]
[1772982487395,0.07437377,67228.0,67225.0,0.0002]
[1772982487602,0.005,67227.0,67225.0,0.0002]
[1772982487816,0.005,67227.0,67218.0,0.0002]
[1772982488486,0.13008858,67226.0,67214.0,0.08013878]
[1772982488689,0.12495341,67230.0,67214.0,0.08013878]
[1772982488690,0.005,67225.0,67214.0,0.08013878]
[1772982488890,0.07437377,67230.0,67215.0,0.12061651]
[1772982489113,0.07936999,67232.0,67215.0,0.12061651]
[1772982489524,0.07936999,67232.0,67217.0,0.12061651]
[1772982489846,0.07436999,67232.0,67218.0,0.00148]
[1772982490052,0.00148,67231.0,67218.0,0.00148]
[1772982490264,0.005,67230.0,67218.0,0.00148]
[1772982493201,0.00148,67231.0,67218.0,0.00148]
[1772982493202,0.00010031,67233.0,67219.0,0.07438373]
[1772982493577,0.00158031,67233.0,67220.0,0.12061651]
[1772982493964,0.00010031,67233.0,67220.0,0.12061651]
[1772982494166,0.07594859,67233.0,67220.0,0.12061651]
[1772982494765,0.08094859,67233.0,67220.0,0.12061651]
[1772982494962,0.07946859,67233.0,67220.0,0.12061651]
[1772982495176,0.00510031,67233.0,67220.0,0.12061651]
[1772982495386,0.00510031,67233.0,67221.0,0.07438151]
[1772982497256,0.00510031,67233.0,67218.0,0.07606373]
[1772982497257,0.07446862,67233.0,67218.0,0.07606373]
[1772982497464,0.07446862,67233.0,67204.0,0.15334017]
[1772982497465,0.04909964,67226.0,67205.0,0.00148]
[1772982497666,0.07446862,67233.0,67204.0,0.07459936]
[1772982497667,0.005,67218.0,67204.0,0.07459936]
[1772982497886,0.005,67216.0,67206.0,0.00148]
[1772982498088,0.005,67216.0,67204.0,0.07607936]
[1772982498560,0.005,67216.0,67204.0,0.19521587]
[1772982498714,0.005,67216.0,67204.0,0.19669587]
[1772982500178,0.07438595,67217.0,67204.0,0.19669587]
[1772982500179,0.07438248,67221.0,67205.0,0.12061651]
[1772982500379,0.00148,67220.0,67205.0,0.12061651]
[1772982500580,0.07438248,67221.0,67205.0,0.12061651]
[1772982501321,0.07438248,67221.0,67207.0,0.12061651]
[1772982501523,0.07438136,67222.0,67207.0,0.12061651]
[1772982501524,0.005,67222.0,67207.0,0.12061651]
[1772982501730,0.11826068,67238.0,67207.0,0.12061651]
[1772982501731,0.07436479,67237.0,67208.0,0.12061651]
[1772982501900,0.07446865,67233.0,67211.0,0.00450209]
[1772982502135,0.07446865,67233.0,67207.0,0.15314017]
[1772982502136,0.07921901,67233.0,67214.0,0.12061651]
[1772982502290,0.07921901,67233.0,67217.0,0.00450209]
[1772982502488,0.07446865,67233.0,67218.0,0.12209651]
[1772982502692,0.00475036,67232.0,67218.0,0.12209651]
[1772982503460,0.00475036,67232.0,67220.0,0.12061651]
[1772982503662,0.00010031,67233.0,67220.0,0.12061651]
[1772982503880,0.005,67232.0,67219.0,0.07438373]
[1772982505833,0.005,67231.0,67219.0,0.07438373]
[1772982506272,0.005,67231.0,67219.0,0.19500024]
[1772982506500,0.00475036,67243.0,67221.0,0.12061651]
[1772982506733,0.00475036,67243.0,67225.0,0.12061651]
[1772982506903,0.00623036,67243.0,67228.0,0.00450209]
[1772982507108,0.00623036,67243.0,67229.0,0.12061651]
[1772982507685,0.08058763,67243.0,67230.0,0.07437156]
[1772982507906,0.00475036,67243.0,67230.0,0.19498807]
[1772982508081,0.00475036,67243.0,67231.0,0.12061651]
[1772982508259,0.00475036,67243.0,67232.0,0.00148]
[1772982509106,0.07435074,67249.0,67232.0,0.12209651]
[1772982509107,0.005,67249.0,67232.0,0.12209651]
[1772982509710,0.0004,67250.0,67234.0,0.12061651]
[1772982510065,0.0004,67250.0,67233.0,0.07436824]
[1772982510066,0.0004,67250.0,67238.0,0.12061651]
[1772982510250,0.00062001,67250.0,67239.0,0.00148]
[1772982510455,0.07971991,67250.0,67239.0,0.00148]
[1772982510668,0.00475036,67249.0,67239.0,0.00148]
[1772982511782,0.00475036,67249.0,67240.0,0.07436049]
[1772982512187,0.005,67248.0,67240.0,0.07436049]
[1772982514645,0.07935165,67248.0,67240.0,0.07436049]
[1772982515232,0.005,67248.0,67240.0,0.07436049]
[1772982515596,0.005,67247.0,67234.0,0.07436713]
[1772982515806,0.005,67245.0,67235.0,0.00148]
[1772982516046,0.005,67245.0,67234.0,0.07436713]
[1772982516399,0.005,67244.0,67232.0,0.07436713]
[1772982516604,0.005,67244.0,67233.0,0.00148]
[1772982518266,0.005,67244.0,67228.0,0.07437271]
[1772982518480,0.005,67244.0,67227.0,0.07437266]
[1772982518481,0.005,67241.0,67227.0,0.07437266]
[1772982518683,0.005,67241.0,67229.0,0.00148]
[1772982519517,0.005,67241.0,67227.0,0.07437266]
[1772982519653,0.005,67241.0,67230.0,0.00148]
[1772982522983,0.00522001,67254.0,67231.0,0.07437045]
[1772982523198,0.00670001,67254.0,67232.0,0.13012112]
[1772982523905,0.00022001,67254.0,67234.0,0.13012112]
[1772982524073,0.00022001,67249.0,67234.0,0.13012112]
[1772982524515,0.00522001,67254.0,67234.0,0.13012112]
[1772982525093,0.00522001,67254.0,67236.0,0.13012112]
[1772982525295,0.00522001,67254.0,67238.0,0.13012112]
[1772982525741,0.00022001,67254.0,67240.0,0.13012112]
[1772982525947,0.00022001,67254.0,67243.0,0.0469061]
[1772982526120,0.00022001,67254.0,67244.0,0.13160112]
[1772982526319,0.00022001,67254.0,67245.0,0.04830312]
[1772982527925,0.07456523,67254.0,67246.0,0.12117698]
[1772982528296,0.07456523,67254.0,67246.0,0.11917698]
[1772982528944,0.07456523,67254.0,67246.0,0.07235386]
[1772982529096,0.07456523,67254.0,67245.0,0.07583386]
[1772982529303,0.07456523,67254.0,67246.0,0.07435386]
[1772982529720,0.07456523,67254.0,67245.0,0.07296062]
[1772982532794,0.07456522,67254.0,67245.0,0.07296062]
[1772982533238,0.07456522,67254.0,67245.0,0.07316062]
[1772982534113,0.07456522,67254.0,67245.0,0.07282869]
[1772982536751,0.14786598,67256.0,67246.0,0.04682312]
[1772982536952,0.14807899,67260.0,67248.0,0.04682312]
[1772982537193,0.0001192,67260.0,67252.0,0.04682312]
[1772982537527,0.07593767,67260.0,67253.0,0.12116924]
[1772982538509,0.07445767,67260.0,67253.0,0.12116924]
[1772982538724,0.07593767,67260.0,67253.0,0.12116924]
[1772982539594,0.0015992,67260.0,67253.0,0.12116924]
[1772982539941,0.0001192,67260.0,67253.0,0.12116924]
[1772982540181,0.0015992,67260.0,67253.0,0.12116924]
[1772982540520,0.0001192,67260.0,67253.0,0.12116924]
[1772982540760,0.0015992,67260.0,67253.0,0.12116924]
[1772982541335,0.0001192,67260.0,67253.0,0.12116924]
[1772982541515,0.0015992,67260.0,67253.0,0.12116924]
[1772982541710,0.00181921,67260.0,67253.0,0.07434612]
[1772982544251,0.00181921,67260.0,67252.0,0.07434637]
[1772982544448,0.00022001,67267.0,67255.0,0.04967626]
[1772982544647,0.00575,67268.0,67256.0,0.00148]
[1772982544858,0.00575,67268.0,67256.0,0.0015992]
[1772982545255,0.00037001,67274.0,67259.0,0.12022399]
[1772982545496,0.00037001,67274.0,67262.0,0.04967626]
[1772982545497,0.00185001,67274.0,67262.0,0.04967626]
[1772982545656,0.00185001,67274.0,67264.0,0.04967626]
[1772982545887,0.00195891,67279.0,67265.0,0.04936268]
[1772982546084,0.00047891,67279.0,67269.0,0.04936268]
[1772982546307,0.00047891,67279.0,67271.0,0.04936268]
[1772982546527,0.00047891,67279.0,67272.0,0.07432512]
[1772982546726,0.07597333,67283.0,67273.0,0.04936268]
[1772982548184,0.00166001,67283.0,67273.0,0.04919671]
[1772982548828,0.00166001,67283.0,67274.0,0.07432291]
[1772982549029,0.00022001,67286.0,67274.0,0.07432291]
[1772982549030,0.00170001,67286.0,67275.0,0.12022399]
[1772982549211,0.07453018,67286.0,67274.0,0.07432291]
[1772982549383,0.07601018,67286.0,67274.0,0.12368381]
[1772982549604,0.07601018,67286.0,67275.0,0.0493609]
[1772982550929,0.0012,67300.0,67277.0,0.12022399]
[1772982551092,0.0012,67300.0,67276.0,0.0758007]
[1772982551093,0.08153017,67295.0,67280.0,0.04935751]
[1772982551223,0.00022001,67288.0,67280.0,0.1695815]
[1772982551426,0.00022001,67288.0,67281.0,0.04935751]
[1772982551752,0.00723,67295.0,67281.0,0.04935751]
[1772982551951,0.07430082,67294.0,67282.0,0.12022399]
[1772982552225,0.07428696,67307.0,67285.0,0.0485116]
[1772982552350,0.07428696,67307.0,67276.0,0.0743207]
[1772982552351,0.00148,67306.0,67288.0,0.12022399]
[1772982552555,0.00148,67306.0,67292.0,0.04826271]
[1772982552751,0.07440611,67307.0,67292.0,0.04826271]
[1772982552950,0.00148,67306.0,67295.0,0.04826271]
[1772982553409,0.00148,67305.0,67295.0,0.04826271]
[1772982553763,0.00011915,67307.0,67295.0,0.04826271]
[1772982553965,0.00148,67306.0,67295.0,0.04826271]
[1772982554168,0.00148,67306.0,67295.0,0.04811271]
[1772982554389,0.00148,67305.0,67295.0,0.04811271]
[1772982554798,0.00011915,67307.0,67296.0,0.07429862]
[1772982555002,0.00148,67310.0,67299.0,0.04753155]
[1772982555243,0.0017317,67311.0,67301.0,0.04753155]
[1772982555446,0.07601415,67311.0,67301.0,0.04736568]
[1772982555657,0.07453415,67311.0,67301.0,0.04736568]
[1772982555815,0.07601415,67311.0,67301.0,0.04736568]
[1772982556237,0.0002517,67311.0,67301.0,0.12022399]
[1772982556574,0.07453404,67311.0,67302.0,0.04749268]
[1772982556959,0.07453404,67311.0,67303.0,0.07429089]
[1772982557647,0.0002517,67311.0,67304.0,0.04749268]
[1772982558683,0.00148,67318.0,67306.0,0.04801382]
[1772982559459,0.00170001,67319.0,67308.0,0.04801382]
[1772982559872,0.00170001,67319.0,67309.0,0.04810824]
[1772982560850,0.07597327,67319.0,67309.0,0.04810824]
[1772982561300,0.12570166,67318.0,67300.0,0.0742942]
[1772982561473,0.12570166,67318.0,67299.0,0.00011915]
[1772982561474,0.07427544,67317.0,67303.0,0.07429089]
[1772982564264,0.07427544,67317.0,67303.0,0.07577089]
[1772982565286,0.07427544,67318.0,67307.0,0.12022399]
[1772982565490,0.07449327,67319.0,67309.0,0.12022399]
[1772982565491,0.07597342,67319.0,67309.0,0.12022399]
[1772982565818,0.07449342,67319.0,67312.0,0.0479985]
[1772982566758,0.07449342,67319.0,67307.0,0.00148]
[1772982566984,0.20019508,67319.0,67306.0,0.07428667]
[1772982567713,0.20019508,67319.0,67306.0,0.07424667]
[1772982569584,0.07449342,67319.0,67307.0,0.05378991]
[1772982569810,0.07449342,67319.0,67309.0,0.05377771]
[1772982570893,0.07597342,67319.0,67309.0,0.05377771]
[1772982571105,0.07449342,67319.0,67309.0,0.12022399]
[1772982571307,0.07425999,67331.0,67312.0,0.05377771]
[1772982571536,0.07425999,67331.0,67316.0,0.05377771]
[1772982571739,0.00148,67331.0,67321.0,0.05401348]
[1772982572123,0.00148,67348.0,67326.0,0.12022399]
[1772982572331,0.08011055,67349.0,67322.0,0.00148]
[1772982572332,0.00148,67347.0,67329.0,0.05401348]
[1772982572536,0.00148,67347.0,67333.0,0.05401348]
[1772982572746,0.00148,67347.0,67335.0,0.05401348]
[1772982572943,0.00148,67346.0,67335.0,0.05401348]
[1772982573773,0.07424456,67345.0,67336.0,0.07425448]
[1772982573993,0.07424456,67345.0,67327.0,0.07426399]
[1772982573994,0.11749367,67344.0,67315.0,0.05401348]
[1772982574205,0.11749367,67344.0,67316.0,0.00148]
[1772982574407,0.11749367,67344.0,67317.0,0.05401348]
[1772982574619,0.11749367,67344.0,67317.0,0.18261758]
[1772982574837,0.11749367,67344.0,67317.0,0.1286041]
[1772982575078,0.11749367,67344.0,67318.0,0.05401348]
[1772982575727,0.11749367,67344.0,67316.0,0.00148]
[1772982576174,0.11749367,67344.0,67313.0,0.12829333]
[1772982576175,0.11749367,67340.0,67314.0,0.07427875]
[1772982576371,0.11749367,67338.0,67314.0,0.07427875]
[1772982577375,0.11749367,67338.0,67315.0,0.05445939]
[1772982577575,0.22152501,67343.0,67315.0,0.05445939]
[1772982577576,0.11749367,67336.0,67315.0,0.05445939]
[1772982578177,0.19174925,67335.0,67316.0,0.07427654]
[1772982578483,0.00148,67334.0,67317.0,0.05445939]
[1772982578866,0.11897367,67334.0,67317.0,0.05445939]
[1772982579206,0.07425558,67335.0,67317.0,0.05445939]
[1772982579207,0.00148,67333.0,67317.0,0.05445939]
[1772982580316,0.07425889,67332.0,67317.0,0.128734]
[1772982581294,0.07425889,67332.0,67317.0,0.07427461]
[1772982581504,0.07425889,67332.0,67318.0,0.05445939]
[1772982582408,0.07425889,67332.0,67318.0,0.12873356]
[1772982582829,0.00148,67331.0,67318.0,0.12873356]
[1772982583027,0.07424897,67341.0,67318.0,0.07575417]
[1772982583229,0.00148,67340.0,67318.0,0.07575417]
[1772982583738,0.00148,67340.0,67322.0,0.05445939]
[1772982583931,0.00148,67340.0,67324.0,0.05445939]
[1772982584152,0.00148,67340.0,67326.0,0.1287541]
[1772982584326,0.07425117,67339.0,67329.0,0.05445939]
[1772982585300,0.07424786,67344.0,67317.0,0.05445939]
[1772982585301,0.11749367,67337.0,67317.0,0.05445939]
[1772982585579,0.11749367,67337.0,67318.0,0.05593939]
[1772982586553,0.07425448,67336.0,67319.0,0.07427323]
[1772982586879,0.07425448,67336.0,67319.0,0.13021262]
[1772982587264,0.07425448,67336.0,67320.0,0.05445939]
[1772982588117,0.07425448,67337.0,67321.0,0.1287541]
[1772982588268,0.00148,67336.0,67324.0,0.05445939]
[1772982588483,0.00148,67336.0,67327.0,0.1287541]
[1772982588677,0.00148,67336.0,67330.0,0.05445939]
[1772982589063,0.07424526,67345.0,67331.0,0.1287541]
[1772982589270,0.00148,67344.0,67334.0,0.05445939]
[1772982589470,0.07424401,67346.0,67336.0,0.05445939]
[1772982589665,0.00148,67345.0,67336.0,0.05445939]
[1772982590717,0.08011045,67349.0,67340.0,0.05445939]
[1772982591003,0.08011045,67349.0,67344.0,0.05445939]
[1772982591370,0.00587,67349.0,67345.0,0.05445939]
[1772982591540,0.08011082,67349.0,67341.0,0.05445939]
[1772982592857,0.00587,67349.0,67342.0,0.07424786]
[1772982593073,0.00587,67349.0,67342.0,0.12870725]
[1772982593284,0.08011042,67349.0,67342.0,0.07424786]
[1772982593513,0.08011042,67349.0,67343.0,0.05445939]
[1772982593698,0.0012,67350.0,67343.0,0.05445939]
[1772982593939,0.07543935,67350.0,67343.0,0.05445939]
[1772982594152,0.0012,67350.0,67343.0,0.05445939]
[1772982594327,0.0012,67350.0,67343.0,0.1287541]
[1772982594473,0.13929365,67365.0,67345.0,0.1287541]
[1772982594673,0.00022001,67356.0,67345.0,0.07424456]
[1772982594886,0.00022001,67356.0,67340.0,0.0001191]
[1772982594887,0.11749367,67355.0,67341.0,0.07424792]
[1772982595129,0.00148,67354.0,67341.0,0.07424792]
[1772982596856,0.07423574,67353.0,67341.0,0.07424792]
[1772982597158,0.07423574,67353.0,67341.0,0.12654157]
[1772982598067,0.07423574,67353.0,67342.0,0.05106679]
[1772982598960,0.07423574,67353.0,67343.0,0.07424676]
[1772982599572,0.00148,67352.0,67343.0,0.07424676]
[1772982599715,0.07423418,67355.0,67343.0,0.07424676]
[1772982599921,0.07423418,67355.0,67345.0,0.0514701]
[1772982600125,0.07423418,67355.0,67347.0,0.0514701]
[1772982600794,0.07423418,67355.0,67348.0,0.07424125]
[1772982601004,0.07422582,67364.0,67349.0,0.0514701]
[1772982601158,0.07444496,67363.0,67351.0,0.1287541]
[1772982601357,0.00148,67362.0,67352.0,0.0514701]
[1772982601559,0.07444496,67363.0,67345.0,0.07572125]
[1772982601560,0.11897367,67361.0,67345.0,0.07424449]
[1772982602150,0.00022001,67360.0,67345.0,0.07424449]
[1772982603173,0.07422913,67359.0,67345.0,0.12571459]
[1772982603397,0.07422913,67359.0,67346.0,0.0514701]
[1772982603807,0.07422913,67359.0,67347.0,0.12777321]
[1772982604012,0.00148,67358.0,67349.0,0.0514701]
[1772982604226,0.00148,67358.0,67345.0,0.07424449]
[1772982604645,0.00148,67358.0,67346.0,0.0514701]
[1772982605212,0.07423133,67357.0,67345.0,0.07424449]
[1772982607191,0.07423133,67357.0,67345.0,0.12571459]
[1772982607527,0.07423133,67357.0,67346.0,0.0514701]
[1772982608627,0.07423133,67357.0,67345.0,0.07424449]
[1772982609272,0.07423133,67357.0,67345.0,0.07444449]
[1772982609424,0.07423133,67357.0,67345.0,0.12591459]
[1772982612033,0.07423133,67357.0,67348.0,0.0514701]
[1772982613903,0.07423133,67357.0,67348.0,0.1257109]
[1772982614516,0.07423133,67357.0,67348.0,0.0742408]
[1772982614722,0.00148,67357.0,67351.0,0.0514701]
[1772982614920,0.07571133,67357.0,67352.0,0.0514701]
[1772982615852,0.00022001,67363.0,67352.0,0.0514701]
[1772982616069,0.07456636,67371.0,67355.0,0.0514701]
[1772982616286,0.12445023,67370.0,67353.0,0.07571574]
[1772982616487,0.12445023,67370.0,67350.0,0.07571861]
[1772982616662,0.12445023,67370.0,67346.0,0.0514701]
[1772982616877,0.12445023,67370.0,67346.0,0.12556341]
[1772982617738,0.12445023,67370.0,67346.0,0.0513201]
[1772982617980,0.12445023,67368.0,67346.0,0.12556336]
[1772982618158,0.12445023,67366.0,67346.0,0.07424326]
[1772982618359,0.12445023,67366.0,67347.0,0.0513951]
[1772982618565,0.00022001,67360.0,67347.0,0.0513951]
[1772982618878,0.00148,67359.0,67347.0,0.0513951]
[1772982620092,0.07423023,67358.0,67348.0,0.07424125]
[1772982620396,0.07423023,67358.0,67348.0,0.12563635]
[1772982621608,0.07423023,67358.0,67347.0,0.07424215]
[1772982621785,0.07423023,67358.0,67346.0,0.07424345]
[1772982621984,0.07423023,67358.0,67347.0,0.0513951]
[1772982622325,0.07423023,67358.0,67347.0,0.12563691]
[1772982625843,0.12445023,67357.0,67340.0,0.07436908]
[1772982626481,0.12445023,67357.0,67332.0,0.07425862]
[1772982626696,0.07424015,67349.0,67325.0,0.07466623]
[1772982626900,0.00148,67348.0,67326.0,0.04598523]
[1772982627106,0.12445023,67347.0,67326.0,0.04598523]
[1772982627312,0.12445023,67347.0,67325.0,0.07466623]
[1772982627654,0.12445023,67347.0,67326.0,0.04598523]
[1772982628674,0.22234397,67349.0,67326.0,0.04598523]
[1772982628675,0.12445023,67345.0,67326.0,0.04598523]
[1772982628901,0.07424566,67344.0,67327.0,0.07426441]
[1772982629186,0.12445023,67343.0,67327.0,0.12025489]
[1772982631189,0.07424786,67342.0,67327.0,0.07426441]
[1772982631396,0.00148,67341.0,67328.0,0.04594443]
[1772982631739,0.00148,67340.0,67331.0,0.04590764]
[1772982631938,0.00148,67339.0,67331.0,0.04590764]
[1772982632304,0.07424732,67343.0,67331.0,0.04590764]
[1772982632490,0.00148,67342.0,67331.0,0.04590764]
[1772982633313,0.07424897,67341.0,67332.0,0.07425889]
[1772982633720,0.07424897,67341.0,67332.0,0.12012027]
[1772982635725,0.07424897,67341.0,67331.0,0.0002]
[1772982635944,0.07424897,67341.0,67332.0,0.04581826]
[1772982638305,0.07424897,67341.0,67333.0,0.07425779]
[1772982638806,0.07424897,67341.0,67331.0,0.0002]
[1772982639405,0.00148,67340.0,67331.0,0.07445974]
[1772982640058,0.00148,67340.0,67331.0,0.0002]
[1772982640482,0.07425117,67339.0,67327.0,0.07426224]
[1772982641186,0.07425117,67339.0,67326.0,0.07426524]
[1772982642951,0.07425117,67339.0,67327.0,0.0002]
[1772982644581,0.12470541,67338.0,67327.0,0.0002]
[1772982645029,0.07425117,67339.0,67328.0,0.04567321]
[1772982645875,0.00148,67338.0,67328.0,0.04567321]
[1772982647214,0.07425338,67337.0,67328.0,0.04567321]
[1772982649110,0.07425338,67337.0,67325.0,0.0004]
[1772982649293,0.07425338,67337.0,67324.0,0.00035]
[1772982649294,0.12470541,67336.0,67324.0,0.07461767]
[1772982649491,0.12470541,67336.0,67324.0,0.00035]
[1772982649717,0.07425338,67337.0,67325.0,0.03721082]
[1772982650343,0.22039003,67356.0,67325.0,0.03721082]
[1772982650494,1e-08,67350.0,67326.0,0.00148]
[1772982650692,1e-08,67350.0,67327.0,0.16357324]
[1772982650907,1e-08,67350.0,67330.0,0.03721082]
[1772982651104,1e-08,67350.0,67335.0,0.03721082]
[1772982651470,1e-08,67350.0,67340.0,0.03721082]
[1772982651613,1e-08,67350.0,67341.0,0.03721082]
[1772982652377,1e-08,67350.0,67333.0,0.07425779]
[1772982652526,1e-08,67350.0,67334.0,0.03719762]
[1772982653226,0.07423905,67350.0,67336.0,0.03719762]
[1772982653430,0.00022001,67344.0,67336.0,0.03719762]
[1772982654422,0.12492542,67344.0,67328.0,0.07426248]
[1772982654618,0.12492542,67344.0,67329.0,0.11145584]
[1772982655432,0.07424676,67343.0,67330.0,0.03719364]
[1772982656033,0.12470541,67342.0,67325.0,0.07458534]
[1772982656698,0.12470541,67342.0,67325.0,0.11177277]
[1772982656955,0.12470541,67342.0,67326.0,0.03718743]
[1772982657335,0.07424676,67343.0,67327.0,0.20062683]
[1772982657336,0.00148,67341.0,67327.0,0.20062683]
[1772982657509,0.00148,67341.0,67330.0,0.03718743]
[1772982658724,0.12470541,67340.0,67327.0,0.07426441]
[1772982659577,0.07425117,67339.0,67326.0,0.07426551]
[1772982659756,0.19895658,67339.0,67326.0,0.07426551]
[1772982660357,0.12470541,67338.0,67324.0,0.00035]
[1772982660560,0.12470541,67338.0,67320.0,0.0002]
[1772982660561,0.1248244,67338.0,67320.0,0.0002]
[1772982660759,0.1248244,67338.0,67321.0,0.0371782]
[1772982661007,0.00148,67337.0,67321.0,0.0371782]
[1772982661507,0.00148,67336.0,67321.0,0.0371782]
[1772982661881,0.12618541,67336.0,67321.0,0.0371782]
[1772982662087,0.12618541,67336.0,67320.0,0.0002]
[1772982662488,0.12618541,67336.0,67320.0,0.07447202]
[1772982663647,0.12618541,67336.0,67320.0,0.0002]
[1772982663648,0.11565757,67334.0,67320.0,0.0002]
[1772982665409,0.00148,67333.0,67320.0,0.0002]
[1772982666209,0.07425889,67332.0,67320.0,0.0002]
[1772982666412,0.07573889,67334.0,67321.0,0.03776623]
[1772982666621,0.07573889,67334.0,67322.0,0.03776623]
[1772982669459,0.07573889,67334.0,67324.0,0.03775731]
[1772982671519,0.12099596,67333.0,67320.0,0.0002]
[1772982673531,0.07425889,67332.0,67320.0,0.0002]
[1772982673737,0.19525485,67332.0,67320.0,0.0002]
[1772982675037,0.07425889,67332.0,67320.0,0.0002]
[1772982675265,0.12099596,67331.0,67320.0,0.0002]
[1772982675873,0.0742611,67330.0,67320.0,0.0002]
[1772982676297,0.0742611,67330.0,67320.0,0.02849211]
[1772982679425,0.0742611,67330.0,67317.0,1e-08]
[1772982679426,0.12099596,67329.0,67317.0,1e-08]
[1772982679631,0.12099596,67327.0,67311.0,0.0004186]
[1772982679838,0.12099596,67320.0,67308.0,0.00015]
[1772982680039,0.12099596,67318.0,67308.0,0.00015]
[1772982681319,0.07427544,67317.0,67308.0,0.00015]
[1772982682055,0.12099596,67316.0,67303.0,0.0002]
[1772982682727,0.12099596,67316.0,67303.0,0.07449035]
[1772982682958,0.12099596,67316.0,67303.0,0.0002]
[1772982684128,0.07427764,67315.0,67303.0,0.0002]
[1772982687362,0.07427764,67315.0,67303.0,0.03137282]
[1772982688896,0.07427764,67315.0,67303.0,0.0002]
[1772982689094,0.07427764,67315.0,67300.0,0.0104069]
[1772982689095,0.12099596,67312.0,67300.0,0.0104069]
[1772982689301,0.12099596,67310.0,67299.0,0.0002186]
[1772982689592,0.12111491,67310.0,67299.0,0.0002186]